bitfinex-derivatives/quotes_ETHF0:USTF0_20220103
["timestamp","ask_amount","ask_price","bid_price","bid_amount"]
[1641213920411,1.5,3824.7,3823.9,2.00479]
[1641213920611,2.132947,3824.8,3823.5,2.00479]
[1641213921315,2.00479,3824.2,3823.5,2.00479]
[1641213921513,2.00479,3824.2,3824.0,0.13602693]
[1641213921712,0.078318,3824.1,3824.0,0.13602693]
[1641213922414,0.6344571,3824.1,3823.6,0.13602693]
[1641213923015,0.5561391,3824.1,3823.6,0.13602693]
[1641213923515,0.88059017,3823.8,3823.6,0.13602693]
[1641213923915,0.078318,3823.7,3823.6,0.13602693]
[1641213924316,0.88059017,3823.8,3823.6,0.13602693]
[1641213924722,0.88059017,3823.7,3823.6,0.13602693]
[1641213925417,0.5561391,3824.1,3823.6,0.13602693]
[1641213925619,0.5561391,3823.8,3823.6,0.13602693]
[1641213925819,0.5561391,3823.8,3823.7,0.228282]
[1641213926018,0.6344571,3823.8,3823.6,0.13602693]
[1641213926518,0.5561391,3823.8,3823.6,0.13602693]
[1641213926719,2.00479,3824.2,3823.7,0.36430893]
[1641213926720,0.5561391,3824.1,3823.7,0.36430893]
[1641213926919,0.5561391,3824.1,3823.7,0.13602693]
[1641213927420,0.5561391,3824.1,3823.8,0.13602693]
[1641213927622,0.078318,3824.0,3823.8,0.75792693]
[1641213928321,0.078318,3824.0,3823.9,0.13602693]
[1641213929624,1.80987098,3824.0,3823.9,1.32237559]
[1641213930425,0.5561391,3824.0,3823.9,0.36430893]
[1641213930825,0.5561391,3824.0,3823.9,1.14884126]
[1641213931023,0.5561391,3824.0,3823.9,1.94734126]
[1641213931524,0.6344571,3824.0,3823.9,0.93452693]
[1641213931725,1.25373188,3824.0,3823.9,0.93452693]
[1641213932126,2.75373188,3824.0,3823.2,1.77763483]
[1641213932325,1.5,3823.4,3823.0,1.77880591]
[1641213932627,1.5,3823.5,3823.0,1.77880591]
[1641213933626,4.00958,3823.1,3823.0,1.77880591]
[1641213933831,4.087898,3823.1,3823.0,1.77880591]
[1641213934429,4.087898,3823.1,3822.4,1.30688546]
[1641213935332,0.88093191,3822.7,3822.4,1.30688546]
[1641213935532,2.00479,3822.5,3822.4,1.30688546]
[1641213935833,2.083108,3822.5,3822.4,1.30688546]
[1641213937238,2.00479,3822.5,3822.4,1.53516746]
[1641213938434,1e-08,3822.5,3822.4,1.53516746]
[1641213938634,2.00479,3823.1,3822.4,1.53516746]
[1641213938835,1.76078047,3823.5,3822.4,2.13136746]
[1641213939336,0.7416601,3823.5,3822.4,2.13136746]
[1641213939538,0.7416601,3823.5,3822.8,2.00479]
[1641213939737,0.128157,3823.4,3822.8,2.00479]
[1641213941943,1.59648466,3823.4,3822.8,2.00479]
[1641213942544,1.46832766,3823.3,3822.8,2.00479]
[1641213942747,1.17453143,3823.0,3822.8,3.19089879]
[1641213942945,1.17453143,3823.0,3822.9,0.228282]
[1641213943146,1.25284943,3823.0,3822.8,3.19089879]
[1641213943747,0.078318,3823.0,3822.8,3.19089879]
[1641213944946,1.25284943,3823.0,3822.8,3.19089879]
[1641213945949,0.078318,3823.0,3822.8,3.19089879]
[1641213946747,1.17453143,3823.1,3822.8,3.41918079]
[1641213947347,1.17453143,3823.1,3822.8,5.55750403]
[1641213947547,0.078318,3823.0,3822.8,5.55750403]
[1641213947748,1.17453143,3823.1,3822.8,5.55750403]
[1641213948248,1.17453143,3823.1,3822.8,5.32922203]
[1641213948450,1.17453143,3823.1,3822.9,0.228282]
[1641213948849,0.078318,3823.0,3822.8,5.32922203]
[1641213949049,1.17453143,3823.1,3822.8,5.32922203]
[1641213949250,1.17453143,3823.2,3822.9,1.18610879]
[1641213949451,1.17453143,3823.2,3823.0,0.228282]
[1641213950253,1.17453143,3823.1,3823.0,0.228282]
[1641213950851,1.25284943,3823.1,3822.9,1.18610879]
[1641213951052,1.46832766,3823.3,3822.9,1.18610879]
[1641213951253,1.46832766,3823.3,3822.8,4.14311324]
[1641213951254,1.46832766,3823.3,3822.8,5.32922203]
[1641213951955,1.17446875,3823.1,3822.8,5.32922203]
[1641213952154,1.17446875,3823.1,3822.9,0.228282]
[1641213952758,1.17446875,3823.1,3822.9,0.32098831]
[1641213953157,1.17446875,3823.1,3822.9,3.79609576]
[1641213953859,1.17446875,3823.1,3823.0,0.09270631]
[1641213954861,1.17446875,3823.2,3823.0,1.2788151]
[1641213955061,1.25278675,3823.2,3823.0,1.2788151]
[1641213955259,1.17446875,3823.2,3823.1,0.228282]
[1641213956159,1.46832766,3823.5,3823.1,0.228282]
[1641213956364,1.46832766,3823.4,3823.1,1.5070971]
[1641213956863,0.078318,3823.3,3823.1,1.5070971]
[1641213957062,1.17303092,3823.2,3823.1,1.2788151]
[1641213957963,0.078318,3823.3,3823.1,1.2788151]
[1641213958162,0.55623783,3823.2,3823.0,1.2788151]
[1641213958361,0.078318,3823.1,3823.0,1.2788151]
[1641213959163,0.078318,3823.1,3823.0,0.09270631]
[1641213959964,0.63455583,3823.1,3822.9,1.2788151]
[1641213961167,0.55623783,3823.0,3822.9,0.09270631]
[1641213961765,0.078318,3823.1,3822.8,3.19089879]
[1641213962167,0.078318,3823.1,3822.8,2.00479]
[1641213965972,0.87521962,3823.4,3822.9,0.228282]
[1641213966170,0.078318,3823.0,3822.8,2.00479]
[1641213966371,1.00337662,3823.5,3822.8,2.00479]
[1641213968175,0.128157,3823.5,3822.8,2.00479]
[1641213969472,1.00337662,3823.5,3822.8,2.00479]
[1641213969872,0.87521962,3823.5,3822.8,2.00479]
[1641213970073,0.87521962,3823.6,3822.8,2.53339]
[1641213970373,0.128157,3823.5,3822.8,2.53339]
[1641213971174,0.128157,3823.5,3822.8,0.5286]
[1641213971379,0.87521962,3823.4,3822.8,0.5286]
[1641213972375,2.00479,3823.2,3822.8,0.5286]
[1641213975180,2.00479,3823.2,3822.6,2.34124479]
[1641213975382,2.00479,3823.2,3823.1,3.04955139]
[1641213975581,2.00479,3823.2,3823.1,3.86543339]
[1641213976383,0.128157,3823.5,3823.1,3.86543339]
[1641213977183,0.128157,3823.5,3823.1,3.63715139]
[1641213978183,2.88000962,3823.7,3823.1,3.63715139]
[1641213978486,0.128157,3823.6,3823.1,3.63715139]
[1641213978683,0.128157,3823.6,3823.1,3.04955139]
[1641213978886,0.87521962,3823.5,3823.1,3.04955139]
[1641213980188,1.00337662,3823.6,3823.1,3.04955139]
[1641213981289,0.87521962,3823.6,3823.1,3.04955139]
[1641213981895,0.128157,3823.5,3823.1,3.04955139]
[1641213982689,0.87521962,3823.6,3823.1,3.04955139]
[1641213983792,2.88000962,3823.7,3823.1,3.04955139]
[1641213983992,0.128157,3823.6,3823.1,3.04955139]
[1641213984691,2.88000962,3823.7,3823.1,3.04955139]
[1641213984894,0.87521962,3823.5,3823.1,3.04955139]
[1641213988194,0.87521962,3823.4,3823.1,3.04955139]
[1641213988396,0.87521962,3823.4,3823.2,0.228282]
[1641213989096,0.078318,3823.3,3823.1,3.04955139]
[1641213990202,0.55621287,3823.2,3823.1,3.04955139]
[1641213990402,1.72317236,3823.2,3823.1,3.04955139]
[1641213992105,0.55621287,3823.2,3823.1,3.04955139]
[1641213993506,0.55621287,3823.2,3823.1,3.27783339]
[1641213993709,0.63453087,3823.2,3823.1,3.04955139]
[1641213993906,0.55621287,3823.2,3823.1,3.04955139]
[1641213994508,0.55621287,3823.2,3823.1,3.27783339]
[1641213995608,0.55621287,3823.3,3823.1,3.27783339]
[1641213995809,0.63453087,3823.3,3823.1,3.27783339]
[1641213996008,0.63453087,3823.3,3823.1,3.04955139]
[1641213996509,1.17083825,3823.2,3823.1,3.04955139]
[1641213996711,1.17083825,3823.2,3823.1,3.27783339]
[1641213996910,0.55621287,3823.2,3823.1,3.27783339]
[1641213997311,0.63453087,3823.2,3823.1,3.04955139]
[1641213997510,0.55621287,3823.2,3823.1,3.04955139]
[1641213997710,0.55621287,3823.2,3823.1,3.27783339]
[1641213997910,0.55621287,3823.3,3823.1,3.27783339]
[1641213998111,1.80551098,3823.3,3823.1,3.04955139]
[1641213998311,1.80551098,3823.3,3822.7,1.18610879]
[1641213998512,2.36381098,3823.3,3822.7,1.18610879]
[1641213998917,1.19283087,3823.3,3822.7,1.18610879]
[1641213999113,0.55621287,3823.2,3822.7,1.18610879]
[1641213999313,0.55621287,3823.2,3822.4,2.00479]
[1641213999314,0.55621287,3823.2,3822.6,1.18610879]
[1641214001015,1.17063728,3822.9,3822.5,0.09271538]
[1641214001217,0.128157,3822.8,3822.5,0.09271538]
[1641214001416,0.078318,3822.7,3822.5,0.09271538]
[1641214002916,0.87756057,3822.6,3822.5,0.09271538]
[1641214003417,0.55621287,3822.6,3822.3,1.18610879]
[1641214003720,0.55621287,3822.6,3822.4,0.228282]
[1641214003920,0.55621287,3822.6,3822.3,1.18610879]
[1641214004218,0.8777688,3822.5,3822.3,1.18610879]
[1641214004621,0.8777688,3822.5,3822.4,0.228282]
[1641214005020,0.8777688,3822.6,3822.4,1.41439079]
[1641214005222,0.078318,3822.5,3822.4,1.18610879]
[1641214006321,0.078318,3822.5,3822.3,1.18610879]
[1641214006523,0.8777688,3822.6,3822.4,0.228282]
[1641214006721,0.8777688,3822.6,3822.3,1.18610879]
[1641214006921,0.8777688,3822.5,3822.3,1.18610879]
[1641214007321,0.8777688,3822.5,3822.3,1.41439079]
[1641214007820,0.8777688,3822.6,3822.3,1.41439079]
[1641214008420,0.8777688,3822.5,3822.3,1.41439079]
[1641214009024,0.8777688,3822.5,3822.4,0.228282]
[1641214009423,0.9560868,3822.5,3822.3,1.18610879]
[1641214009923,0.8777688,3822.5,3822.3,1.18610879]
[1641214010123,0.8777688,3822.5,3822.3,1.41439079]
[1641214010323,0.8777688,3822.6,3822.3,1.41439079]
[1641214010525,0.8777688,3822.6,3822.3,0.228282]
[1641214010923,0.078318,3822.5,3822.2,1.18610879]
[1641214011127,0.8777688,3822.6,3822.2,1.18610879]
[1641214011626,0.8777688,3822.6,3822.1,2.86688871]
[1641214011627,11.21,3822.5,3822.1,2.00479]
[1641214011825,11.21,3822.5,3821.9,1.48259237]
[1641214012126,11.21,3822.5,3822.0,1.1847914]
[1641214012127,0.8777688,3822.4,3822.0,1.1847914]
[1641214013225,13.21479,3822.5,3821.7,1.48259237]
[1641214013425,2.02462947,3822.4,3821.6,2.00479]
[1641214014625,0.87625388,3821.9,3821.6,2.00479]
[1641214014825,0.206475,3821.8,3821.6,2.00479]
[1641214015026,0.128157,3821.8,3821.6,2.233072]
[1641214015225,0.128157,3821.8,3821.6,2.00479]
[1641214015426,0.962057,3821.8,3821.6,2.00479]
[1641214015626,0.078318,3821.7,3821.6,2.00479]
[1641214016227,1.83831088,3821.8,3821.6,2.233072]
[1641214016730,0.87625388,3821.7,3821.6,2.233072]
[1641214017130,1.46832766,3822.2,3821.6,2.233072]
[1641214017330,1.46832766,3822.2,3821.6,3.014372]
[1641214017531,0.128157,3822.3,3821.6,3.014372]
[1641214017731,0.128157,3822.3,3821.7,4.186399]
[1641214021134,0.128157,3822.3,3821.8,2.69255198]
[1641214021333,0.128157,3822.3,3821.8,3.45452333]
[1641214021534,0.128157,3822.3,3821.9,4.186235]
[1641214022536,0.128157,3822.3,3821.9,4.27895906]
[1641214023137,0.128157,3822.3,3821.9,4.186235]
[1641214028942,3.1720827,3822.5,3821.9,4.186235]
[1641214029142,0.128157,3822.4,3821.9,4.186235]
[1641214030743,2.00479,3822.5,3821.9,4.186235]
[1641214030943,3.1720827,3822.5,3821.8,1.54693151]
[1641214031143,0.128157,3822.4,3821.8,1.54693151]
[1641214031643,0.128157,3822.4,3821.9,4.18618]
[1641214032044,3.1720827,3822.5,3821.9,4.18618]
[1641214032245,3.1720827,3822.5,3821.9,4.2789077]
[1641214032844,3.1720827,3822.5,3821.9,4.18618]
[1641214033046,2.00479,3822.5,3821.9,4.18618]
[1641214033244,2.132947,3822.5,3821.9,4.97111944]
[1641214034448,2.00479,3822.5,3821.9,4.97111944]
[1641214036550,2.00479,3822.5,3822.0,0.09271993]
[1641214036951,2.00479,3822.5,3822.1,4.186016]
[1641214037950,2.00479,3822.5,3822.1,4.941116]
[1641214038156,2.00479,3822.5,3822.2,0.80572902]
[1641214038349,0.078318,3822.4,3822.2,0.80572902]
[1641214040453,0.95151396,3822.4,3822.2,0.80572902]
[1641214040653,1.54101396,3822.4,3822.2,0.80572902]
[1641214042855,1.46269596,3822.4,3822.2,1.03401102]
[1641214043054,0.078318,3822.3,3822.2,0.80572902]
[1641214044258,0.639718,3822.3,3821.5,1.91100354]
[1641214044462,0.639718,3822.3,3821.5,3.09498108]
[1641214044463,1.51291396,3822.3,3821.5,3.09498108]
[1641214045662,2.00479,3821.9,3821.5,3.09498108]
[1641214046065,0.128157,3821.8,3821.5,3.09498108]
[1641214046267,0.078318,3821.7,3821.5,1.91100354]
[1641214046466,0.128157,3821.8,3821.5,1.91100354]
[1641214047067,0.078318,3821.7,3821.5,1.91100354]
[1641214047270,0.128157,3821.8,3821.6,0.09272461]
[1641214047967,0.078318,3821.7,3821.6,0.09272461]
[1641214048367,0.078318,3821.7,3821.5,1.91100354]
[1641214048570,0.078318,3821.7,3821.5,2.13928554]
[1641214048767,0.128157,3821.8,3821.5,2.13928554]
[1641214048966,0.078318,3821.7,3821.5,2.13928554]
[1641214049167,0.128157,3821.8,3821.5,2.13928554]
[1641214049368,2.00479,3821.9,3821.5,2.13928554]
[1641214052374,2.00479,3821.9,3821.5,1.91100354]
[1641214053774,2.87798596,3821.9,3821.5,1.91100354]
[1641214055177,0.87319596,3821.8,3821.5,1.91100354]
[1641214055378,0.87319596,3821.8,3821.6,0.228282]
[1641214055876,0.95151396,3821.8,3821.6,0.228282]
[1641214056077,0.95151396,3821.8,3821.5,1.91100354]
[1641214056276,0.078318,3821.8,3821.5,1.91100354]
[1641214058281,1.5,3821.7,3821.2,1.18397754]
[1641214058680,3.50479,3821.9,3821.2,1.18397754]
[1641214058880,2.00479,3821.9,3821.2,1.18397754]
[1641214059582,0.87319596,3821.6,3821.1,0.0989244]
[1641214059781,2.00479,3821.5,3821.1,0.0989244]
[1641214061481,3.50479,3821.5,3821.1,0.0989244]
[1641214062283,4.37798596,3821.5,3820.7,1.18397754]
[1641214063587,0.87319596,3821.4,3820.6,3.18876754]
[1641214064388,2.00479,3821.5,3820.6,2.00479]
[1641214064790,1.5,3821.3,3820.6,2.00479]
[1641214064988,11.338157,3821.2,3820.2,3.18876754]
[1641214065390,11.338157,3821.2,3820.2,1.18397754]
[1641214065990,2.00479,3820.3,3820.2,1.18397754]
[1641214066188,2.857808,3820.3,3820.2,1.18397754]
[1641214066792,14.067808,3820.3,3819.8,1.48259237]
[1641214066992,0.128157,3820.2,3819.8,1.48259237]
[1641214067993,2.00479,3819.9,3819.5,1.77880591]
[1641214068195,2.00479,3819.9,3818.9,1.48259237]
[1641214068992,2.00479,3819.9,3819.0,0.37110485]
[1641214069995,2.00479,3819.2,3818.7,3.18936217]
[1641214070594,2.00479,3819.2,3818.8,0.371107]
[1641214070795,2.00479,3819.2,3818.9,1.48259237]
[1641214070995,2.00479,3819.2,3819.0,0.228282]
[1641214071396,0.078318,3819.1,3819.0,0.371107]
[1641214071595,2.00479,3819.2,3818.9,1.48259237]
[1641214071996,1.67254775,3819.0,3818.9,1.48259237]
[1641214072196,1.67254775,3819.0,3818.9,1.71087437]
[1641214072797,1.67254775,3819.0,3818.9,3.55536967]
[1641214072997,1.67254775,3819.0,3818.9,2.0727773]
[1641214073597,2.18151596,3820.4,3818.9,3.5727773]
[1641214073800,0.87319596,3820.4,3818.9,4.58816394]
[1641214074000,2.00479,3819.5,3819.1,1.5]
[1641214074200,2.00479,3819.5,3819.1,1.28281511]
[1641214075401,2.00479,3819.5,3819.2,1.5]
[1641214075600,2.00479,3819.5,3819.3,0.228282]
[1641214075800,2.00479,3819.9,3819.3,0.228282]
[1641214078201,2.00479,3819.9,3819.5,1.18224684]
[1641214081406,2.00479,3819.9,3819.5,2.94083402]
[1641214082307,2.00479,3819.9,3819.6,0.09275833]
[1641214082507,2.00479,3820.4,3819.6,0.09275833]
[1641214082508,2.00479,3820.4,3819.7,0.228282]
[1641214083108,2.132947,3820.4,3819.7,0.228282]
[1641214085010,2.00479,3820.4,3819.7,0.228282]
[1641214085412,2.00479,3820.4,3819.9,1.75838389]
[1641214086211,2.132947,3820.4,3819.9,1.75838389]
[1641214091721,0.87319596,3820.7,3819.9,1.75838389]
[1641214091918,0.87319596,3820.7,3820.3,2.78283322]
[1641214092121,0.87319596,3820.7,3820.3,5.58232322]
[1641214092319,0.87319596,3820.7,3820.4,4.187933]
[1641214092519,1.00135296,3820.8,3820.5,0.228282]
[1641214092718,1.00135296,3820.8,3820.3,5.58232322]
[1641214093620,0.128157,3820.8,3820.3,5.58232322]
[1641214093822,0.55651084,3820.7,3820.6,0.09275181]
[1641214094022,0.63482884,3820.7,3820.6,0.32103381]
[1641214094222,0.55651084,3820.7,3820.6,0.09275181]
[1641214094622,0.55651084,3820.7,3820.4,1.27499865]
[1641214094821,0.078318,3820.6,3820.4,1.27499865]
[1641214095224,0.078318,3820.6,3820.4,1.50328065]
[1641214095425,0.55651084,3820.7,3820.4,1.50328065]
[1641214095624,0.078318,3820.6,3820.4,1.50328065]
[1641214095825,1.59648466,3820.8,3820.4,1.27499865]
[1641214096426,1.46832766,3820.7,3820.5,0.09275181]
[1641214096626,1.46832766,3820.7,3820.6,0.228282]
[1641214096830,1.46832766,3820.7,3820.3,3.98173684]
[1641214096831,3.04664566,3820.7,3820.3,3.98173684]
[1641214097026,2.85487837,3820.7,3819.5,4.22683353]
[1641214097227,4.35487837,3820.7,3819.6,0.50495899]
[1641214097828,15.56487837,3820.7,3819.6,0.50495899]
[1641214098128,2.00479,3820.3,3819.6,0.50495899]
[1641214098529,2.00479,3820.3,3819.5,2.00479]
[1641214098530,0.87372233,3819.7,3819.5,2.00479]
[1641214098729,0.206475,3819.6,3819.5,2.00479]
[1641214099630,1.00187933,3819.6,3819.5,2.00479]
[1641214099831,1.08019733,3819.6,3819.5,2.00479]
[1641214100130,1.00187933,3819.6,3819.0,2.88411052]
[1641214102033,0.128157,3819.6,3819.0,2.88411052]
[1641214103232,2.00479,3820.3,3819.3,1.5]
[1641214103432,0.87372233,3820.7,3819.4,1.71033131]
[1641214104038,0.87372233,3820.9,3819.4,1.71033131]
[1641214104233,2.00479,3820.8,3819.9,2.00479]
[1641214104432,0.128157,3820.7,3819.9,2.00479]
[1641214105534,0.128157,3820.7,3820.0,1.5]
[1641214105735,0.87372233,3821.0,3820.2,1.5]
[1641214105937,0.87372233,3821.0,3820.2,2.173]
[1641214106135,0.87372233,3821.0,3820.4,2.00479]
[1641214106336,1.00187933,3821.0,3820.4,2.00479]
[1641214106734,1.00187933,3821.0,3820.4,3.1121892]
[1641214107935,0.128157,3821.0,3820.4,3.1121892]
[1641214113639,0.750557,3821.0,3820.4,2.00479]
[1641214114142,1.62427933,3821.0,3820.4,2.00479]
[1641214116744,0.750557,3821.0,3820.4,2.00479]
[1641214118649,1.62427933,3821.0,3820.4,2.00479]
[1641214119149,0.750557,3821.0,3820.4,2.00479]
[1641214119951,0.6224,3821.0,3820.4,2.00479]
[1641214120252,0.87372233,3821.2,3820.4,2.00479]
[1641214120855,0.87372233,3821.1,3820.4,2.00479]
[1641214122854,0.87372233,3821.0,3820.4,2.00479]
[1641214123554,0.87372233,3821.0,3820.5,2.86469422]
[1641214124255,0.128157,3821.2,3820.5,2.95744994]
[1641214124454,1.44744284,3820.6,3820.5,2.95744994]
[1641214124653,1.52576084,3820.6,3820.5,2.95744994]
[1641214125456,1.52576084,3820.6,3820.5,3.18573194]
[1641214125457,1.44744284,3820.6,3820.5,3.18573194]
[1641214126056,1.52576084,3820.6,3820.5,2.95744994]
[1641214126256,1.44744284,3820.6,3820.5,2.95744994]
[1641214126458,1.44744284,3820.6,3820.5,3.09297622]
[1641214126657,0.55653429,3821.1,3820.5,3.09297622]
[1641214126658,1.16222168,3820.7,3820.5,3.09297622]
[1641214126857,0.078318,3820.6,3820.5,2.86469422]
[1641214127056,1.16222168,3820.7,3820.5,2.86469422]
[1641214127458,1.16222168,3820.7,3820.5,3.09297622]
[1641214127658,1.16222168,3820.7,3820.5,2.86469422]
[1641214127858,0.078318,3820.6,3820.5,2.86469422]
[1641214128358,1.16222168,3820.7,3820.5,3.09297622]
[1641214128560,1.16222168,3820.6,3820.5,3.09297622]
[1641214129661,0.87269704,3820.6,3820.5,2.86469422]
[1641214130260,0.87269704,3820.6,3820.5,3.09297622]
[1641214130460,1.16222168,3820.8,3820.5,3.09297622]
[1641214130662,1.16222168,3820.8,3820.5,2.86469422]
[1641214130860,0.55653429,3821.0,3820.8,2.87170239]
[1641214131060,0.55653429,3821.0,3820.5,2.86469422]
[1641214131262,3.45223284,3821.1,3820.5,2.86469422]
[1641214131462,0.87258295,3820.7,3820.3,2.00479]
[1641214131662,0.87258295,3820.7,3820.3,2.8864687]
[1641214132664,0.87258295,3820.7,3820.4,0.09274856]
[1641214132863,0.55649135,3821.0,3820.5,0.228282]
[1641214134063,1.44744284,3821.3,3820.5,0.228282]
[1641214134466,0.399,3821.4,3820.5,0.228282]
[1641214134767,0.399,3821.4,3820.8,2.00479]
[1641214134965,0.399,3821.4,3820.8,3.00298276]
[1641214135365,0.5564491,3821.3,3820.8,3.00298276]
[1641214138269,0.6846061,3821.3,3820.8,3.00298276]
[1641214139968,0.5564491,3821.2,3820.8,3.00298276]
[1641214140369,0.5564491,3821.2,3820.8,2.00479]
[1641214140568,1.3509491,3821.2,3820.8,2.00479]
[1641214141872,1.16322953,3821.0,3820.8,2.00479]
[1641214142071,0.078318,3820.9,3820.8,2.00479]
[1641214143777,0.6347671,3820.9,3820.8,2.00479]
[1641214148682,0.5564491,3820.9,3820.8,2.233072]
[1641214149482,0.5564491,3820.9,3820.8,2.00479]
[1641214149682,0.6347671,3820.9,3820.8,2.00479]
[1641214150085,0.078318,3820.9,3820.8,2.00479]
[1641214151086,0.5564491,3820.9,3820.8,2.233072]
[1641214151988,1.16322953,3821.1,3820.8,2.233072]
[1641214152989,0.87176672,3820.9,3820.8,2.233072]
[1641214154390,0.95008472,3820.9,3820.8,2.00479]
[1641214154792,0.87176672,3820.9,3820.8,2.00479]
[1641214155393,0.95008472,3820.9,3820.8,2.00479]
[1641214156997,1.16322953,3821.2,3820.8,2.233072]
[1641214157196,0.55650879,3820.9,3820.8,2.00479]
[1641214157396,0.63482679,3820.9,3820.8,2.00479]
[1641214157996,0.95017629,3820.9,3820.8,2.00479]
[1641214161702,0.078318,3820.9,3820.8,2.00479]
[1641214161900,0.63482488,3820.9,3820.8,2.00479]
[1641214164205,1.79805441,3820.9,3820.8,2.00479]
[1641214166910,0.63482488,3820.9,3820.8,2.00479]
[1641214171317,0.55650688,3820.9,3820.8,2.233072]
[1641214171513,0.63482488,3820.9,3820.8,2.00479]
[1641214172114,0.078318,3820.9,3820.8,2.00479]
[1641214172913,0.63482488,3820.9,3820.8,2.00479]
[1641214173117,0.63482488,3820.9,3820.2,1.18490199]
[1641214173317,1.5,3820.6,3819.9,1.47553138]
[1641214173514,1.5,3820.6,3819.8,2.00479]
[1641214173720,14.01852372,3819.9,3819.4,2.22204353]
[1641214173916,1.5,3819.6,3819.4,2.22204353]
[1641214174116,0.078318,3819.5,3819.1,2.96127628]
[1641214174315,0.078318,3819.5,3819.4,0.46312825]
[1641214174617,0.078318,3819.5,3819.0,2.22413556]
[1641214174815,1.5,3819.4,3819.0,2.22413556]
[1641214175215,2.00479,3819.5,3819.0,2.22413556]
[1641214175413,22.80832292,3819.3,3819.0,2.22413556]
[1641214175614,0.078318,3819.2,3819.0,2.22413556]
[1641214176216,0.078318,3819.2,3818.6,2.00479]
[1641214177818,0.55650688,3819.1,3818.6,2.00479]
[1641214178118,0.128157,3819.0,3818.6,2.00479]
[1641214178718,0.87239639,3818.8,3818.6,2.00479]
[1641214178918,0.95071439,3818.8,3818.6,2.00479]
[1641214179318,0.87239639,3818.8,3818.6,2.00479]
[1641214179720,0.87239639,3818.9,3818.6,2.00479]
[1641214179923,0.078318,3818.8,3818.6,2.00479]
[1641214180120,0.87239639,3818.9,3818.7,0.228282]
[1641214182423,0.078318,3818.8,3818.6,2.00479]
[1641214183022,1.48569639,3818.9,3818.7,0.228282]
[1641214183222,1.48569639,3818.9,3818.6,2.00479]
[1641214183423,0.078318,3818.8,3818.6,2.00479]
[1641214183622,1.48569639,3818.9,3818.6,2.00479]
[1641214183623,0.87239639,3818.9,3818.6,2.00479]
[1641214183823,0.55671687,3819.4,3818.6,2.00479]
[1641214184023,0.55671687,3818.8,3818.6,2.00479]
[1641214184222,0.55671687,3818.8,3818.7,0.228282]
[1641214184428,0.55671687,3818.8,3818.6,2.00479]
[1641214185034,1.29075069,3819.0,3818.6,2.00479]
[1641214185229,1.29075069,3819.0,3818.7,0.228282]
[1641214185429,0.078318,3818.9,3818.7,0.228282]
[1641214185629,1.29075069,3819.0,3818.7,0.228282]
[1641214185832,1.16259369,3818.8,3818.7,0.228282]
[1641214186832,1.16259369,3818.9,3818.7,0.228282]
[1641214187031,1.16259369,3818.9,3818.6,2.00479]
[1641214187732,0.87245297,3818.7,3818.6,2.00479]
[1641214187933,0.87245297,3818.7,3818.6,2.233072]
[1641214188536,0.95077097,3818.7,3818.6,2.00479]
[1641214188734,0.87245297,3818.7,3818.6,2.00479]
[1641214189439,0.95077097,3818.7,3818.6,2.00479]
[1641214189638,1.16259369,3818.9,3818.6,2.233072]
[1641214189839,0.55671687,3818.7,3818.6,2.233072]
[1641214190041,0.55671687,3818.7,3818.6,2.00479]
[1641214190640,0.078318,3818.7,3818.6,2.00479]
[1641214191840,0.55671687,3818.7,3818.6,2.00479]
[1641214192039,0.63503487,3818.7,3818.6,2.00479]
[1641214192338,0.55671687,3818.7,3818.6,2.233072]
[1641214192741,1.16259369,3818.8,3818.6,2.233072]
[1641214193342,0.078318,3818.7,3818.6,2.00479]
[1641214193541,1.16259369,3818.8,3818.6,2.233072]
[1641214193742,1.16259369,3818.9,3818.6,2.233072]
[1641214195047,0.078318,3818.8,3818.6,2.00479]
[1641214195245,0.639318,3818.8,3818.4,1.23203938]
[1641214195444,2.00479,3818.5,3817.6,4.90212538]
[1641214195844,2.00479,3818.5,3817.6,2.00479]
[1641214198747,2.74469,3818.5,3817.6,2.00479]
[1641214200949,2.74469,3818.5,3818.0,1.5]
[1641214201148,2.00479,3818.8,3818.0,2.1049]
[1641214201351,2.00479,3818.8,3818.0,3.2959186]
[1641214201551,2.00479,3818.8,3818.2,2.00479]
[1641214204152,2.00479,3818.8,3818.0,1.1910186]
[1641214205555,2.71589,3818.8,3818.0,1.1910186]
[1641214208760,2.71589,3818.8,3818.1,0.93626727]
[1641214214466,2.71589,3818.8,3818.6,0.78561559]
[1641214214666,2.71589,3818.8,3818.7,0.228282]
[1641214214867,2.71589,3818.8,3818.6,1.80261524]
[1641214215065,2.794208,3818.8,3818.6,1.80261524]
[1641214215267,2.71589,3818.8,3818.6,1.80261524]
[1641214215469,2.71589,3818.8,3818.6,1.01699965]
[1641214215867,0.078318,3818.7,3818.6,1.24528165]
[1641214216274,2.71589,3818.8,3818.6,1.24528165]
[1641214216868,0.078318,3818.7,3818.6,1.01699965]
[1641214217069,0.078318,3818.7,3818.5,0.78564174]
[1641214217470,0.078318,3818.7,3818.2,2.00479]
[1641214219871,2.00479,3818.8,3818.2,2.00479]
[1641214224377,2.00479,3818.8,3818.5,0.7856398]
[1641214224577,2.00479,3818.8,3818.6,0.228282]
[1641214224878,2.083108,3818.8,3818.6,1.2210775]
[1641214225077,2.00479,3818.8,3818.6,1.2210775]
[1641214225479,2.00479,3818.8,3818.6,0.9927955]
[1641214226282,2.00479,3818.8,3818.7,0.228282]
[1641214226481,2.083108,3818.8,3818.6,0.9927955]
[1641214226683,2.00479,3818.8,3818.6,0.9927955]
[1641214227385,2.083108,3818.8,3818.6,0.9927955]
[1641214227583,2.00479,3818.8,3818.7,0.228282]
[1641214228488,2.56154777,3818.8,3818.7,0.228282]
[1641214229687,0.55675777,3818.8,3818.7,0.228282]
[1641214229889,1.72964667,3819.3,3818.7,1.728282]
[1641214230088,1.72964667,3819.3,3818.7,0.228282]
[1641214230288,1.16334843,3818.8,3818.7,0.228282]
[1641214230490,1.16334843,3818.8,3818.7,1.728282]
[1641214230687,1.72964667,3819.3,3818.7,1.728282]
[1641214231093,1.72964667,3819.3,3818.7,0.228282]
[1641214231291,0.87337159,3819.1,3818.7,0.228282]
[1641214231490,0.87337159,3819.1,3819.0,2.00479]
[1641214231788,0.87337159,3819.1,3819.0,2.233072]
[1641214234590,3.73443667,3819.9,3819.0,2.233072]
[1641214234790,0.128157,3819.8,3819.0,2.233072]
[1641214238595,3.73443667,3819.9,3819.4,0.90118627]
[1641214240497,1.4570805,3819.7,3819.4,0.90118627]
[1641214240698,1.4570805,3819.7,3819.5,0.228282]